bitfinex-derivatives/quotes_ETHF0:USTF0_20260118
["timestamp","ask_amount","ask_price","bid_price","bid_amount"]
[1768741463850,1.04768976,3323.6,3322.5,0.13952968]
[1768741464053,1.04768976,3323.5,3322.5,0.13952968]
[1768741464253,0.00357472,3323.7,3322.5,0.13952968]
[1768741464558,1.04763681,3323.6,3322.5,0.13952968]
[1768741464745,0.00357472,3323.7,3322.5,0.13952968]
[1768741464949,1.04763754,3323.6,3322.5,1.65952968]
[1768741465158,0.00357472,3323.7,3322.5,1.65952968]
[1768741465359,1.04760108,3323.6,3322.5,1.65952968]
[1768741465562,0.00357472,3323.7,3322.5,1.65952968]
[1768741465855,1.04760107,3323.6,3322.5,1.65952968]
[1768741466061,0.00357472,3323.7,3322.5,1.65952968]
[1768741466256,1.04757436,3323.6,3322.5,1.65952968]
[1768741466455,0.00357472,3323.7,3322.5,1.65952968]
[1768741466658,1.04756366,3323.6,3322.5,1.65952968]
[1768741466856,0.00357472,3323.7,3322.5,1.65952968]
[1768741467057,1.04756362,3323.6,3322.5,1.65952968]
[1768741467261,0.00357472,3323.7,3322.5,1.65952968]
[1768741467460,1.04753153,3323.6,3322.5,1.65952968]
[1768741467655,0.00357472,3323.7,3322.6,0.13591562]
[1768741467856,1.04752933,3323.6,3322.6,0.13591562]
[1768741468052,0.00357472,3323.7,3322.6,0.13591562]
[1768741468256,1.04750446,3323.6,3322.6,0.13591562]
[1768741468562,0.00357472,3323.7,3322.6,0.13591562]
[1768741468863,1.04749323,3323.6,3322.6,0.13591562]
[1768741469065,0.00357472,3323.7,3322.6,0.13591562]
[1768741469263,1.04747335,3323.6,3322.6,0.13591562]
[1768741469462,0.00357472,3323.7,3322.6,0.13591562]
[1768741469667,1.0474625,3323.6,3322.6,0.13591562]
[1768741469966,0.00357472,3323.7,3322.6,0.13591562]
[1768741470265,1.04746248,3323.6,3322.6,0.13591562]
[1768741470467,0.00357472,3323.7,3322.6,0.13591562]
[1768741470658,1.04744741,3323.6,3322.6,0.13591562]
[1768741470858,0.00357472,3323.7,3322.6,0.13591562]
[1768741471058,1.04744762,3323.6,3322.6,0.13591562]
[1768741471258,0.00357472,3323.7,3322.6,0.13591562]
[1768741471457,1.04742677,3323.6,3322.6,0.13591562]
[1768741471658,0.00357472,3323.7,3322.6,0.13591562]
[1768741471870,1.04742676,3323.6,3322.6,0.13591562]
[1768741472067,0.00357472,3323.7,3322.6,0.13591562]
[1768741472260,1.04741036,3323.6,3322.6,0.13591562]
[1768741472461,0.00357472,3323.7,3322.6,0.13591562]
[1768741472662,1.04741035,3323.6,3322.6,0.13591562]
[1768741472863,0.00357472,3323.7,3322.6,0.13591562]
[1768741473063,1.04741034,3323.6,3322.6,0.13591562]
[1768741473270,0.00357472,3323.7,3322.6,0.13591562]
[1768741473470,1.04739701,3323.6,3322.6,0.13591562]
[1768741473663,0.00357472,3323.7,3322.6,0.13591562]
[1768741473862,1.04739699,3323.6,3322.6,0.13591562]
[1768741474063,0.00357472,3323.7,3322.6,0.13591562]
[1768741474270,1.04738846,3323.6,3322.6,0.13591562]
[1768741474473,0.00357472,3323.7,3322.6,0.13591562]
[1768741474673,1.04738845,3323.6,3322.6,0.13591562]
[1768741474973,0.00357472,3323.7,3322.6,0.13591562]
[1768741475168,1.04738848,3323.6,3322.6,0.13591562]
[1768741475371,0.00357472,3323.7,3322.6,0.13591562]
[1768741475669,1.04738105,3323.6,3322.6,0.13591562]
[1768741475870,0.00357472,3323.7,3322.6,0.13591562]
[1768741476071,1.04738104,3323.6,3322.6,0.13591562]
[1768741476271,0.00357472,3323.7,3322.6,0.13591562]
[1768741476569,1.04647982,3323.6,3322.6,0.13591562]
[1768741476769,0.00357472,3323.7,3322.6,0.13591562]
[1768741476970,1.04647985,3323.6,3322.6,0.13591562]
[1768741477172,0.00357472,3323.7,3322.6,0.13591562]
[1768741477370,1.04649728,3323.6,3322.6,0.13591562]
[1768741477574,0.00357472,3323.7,3322.6,0.13591562]
[1768741477773,1.04649726,3323.6,3322.6,0.13591562]
[1768741477974,0.00357472,3323.7,3322.6,0.13591562]
[1768741478164,1.04649711,3323.6,3322.6,0.13591562]
[1768741478370,0.00357472,3323.7,3322.6,0.13591562]
[1768741478667,1.0465199,3323.6,3322.6,0.13591562]
[1768741478869,0.00357472,3323.7,3322.6,0.13591562]
[1768741479075,1.04651989,3323.6,3322.6,0.13591562]
[1768741479277,0.00357472,3323.7,3322.6,0.13591562]
[1768741479479,1.04654895,3323.6,3322.6,0.13591562]
[1768741479682,0.00357472,3323.7,3322.6,0.13591562]
[1768741479977,1.04654897,3323.6,3322.6,0.13591562]
[1768741480177,0.00357472,3323.7,3322.6,0.13591562]
[1768741480378,1.04658202,3323.6,3322.6,0.13591562]
[1768741480580,0.00357472,3323.7,3322.6,0.13591562]
[1768741480770,1.04658103,3323.6,3322.6,0.13591562]
[1768741480968,0.00357472,3323.7,3322.6,0.13591562]
[1768741481171,1.04658187,3323.6,3322.6,0.13591562]
[1768741481382,0.00357472,3323.7,3322.6,0.13591562]
[1768741481568,1.04662281,3323.6,3322.6,0.13591562]
[1768741481866,0.00357472,3323.7,3322.6,0.13591562]
[1768741482072,1.0466228,3323.6,3322.6,0.13591562]
[1768741482370,0.00357472,3323.7,3322.6,0.13591562]
[1768741482570,1.04667188,3323.6,3322.6,0.13591562]
[1768741482870,0.00357472,3323.7,3322.6,0.13591562]
[1768741483066,1.04667187,3323.6,3322.6,0.13591562]
[1768741483272,0.00357472,3323.7,3322.6,0.13591562]
[1768741483472,1.04673141,3323.6,3322.6,0.13591562]
[1768741483675,0.00357472,3323.7,3322.6,0.13591562]
[1768741483869,1.04673143,3323.6,3322.6,0.13591562]
[1768741484070,0.00357472,3323.7,3322.6,0.13591562]
[1768741484283,1.04680455,3323.6,3322.6,0.13591562]
[1768741484475,0.00357472,3323.7,3322.6,0.13591562]
[1768741484677,1.04680454,3323.6,3322.6,0.13591562]
[1768741484876,0.00357472,3323.7,3322.6,0.13591562]
[1768741485077,1.04680453,3323.6,3322.6,0.13591562]
[1768741485277,1.04680453,3323.5,3322.6,0.13591562]
[1768741485577,0.00357472,3323.7,3322.6,0.13591562]
[1768741485778,1.04688333,3323.6,3322.6,0.13591562]
[1768741485983,1.04688333,3323.5,3322.6,0.13591562]
[1768741486186,0.00357472,3323.7,3322.6,0.13591562]
[1768741486379,1.04695737,3323.6,3322.6,0.13591562]
[1768741486577,1.04695737,3323.5,3322.6,0.13591562]
[1768741486780,0.00357472,3323.7,3322.6,0.13591562]
[1768741486980,1.0469574,3323.6,3322.6,0.13591562]
[1768741487183,1.0469574,3323.5,3322.6,0.13591562]
[1768741487378,0.00357472,3323.7,3322.6,0.13591562]
[1768741487577,0.00357472,3323.7,3322.7,0.13349071]
[1768741492292,0.00357472,3323.7,3322.8,3.14848145]
[1768741499412,0.00357472,3323.7,3322.9,0.13748145]
[1768741500307,2.45584803,3324.7,3322.9,0.13748145]
[1768741500510,1.04609758,3324.6,3322.9,0.13748145]
[1768741500701,1.04609758,3324.5,3322.9,0.13748145]
[1768741500901,1.04609758,3324.4,3322.9,0.13748145]
[1768741501107,1.04609758,3324.3,3322.9,0.13748145]
[1768741501309,1.04609758,3324.2,3322.9,0.13748145]
[1768741501501,1.04609758,3324.1,3322.9,0.13748145]
[1768741501703,1.04609758,3324.0,3322.9,0.13748145]
[1768741502014,0.00371111,3324.3,3322.9,0.13748145]
[1768741502211,1.04601918,3324.2,3322.9,0.13748145]
[1768741502412,1.04601918,3324.1,3322.9,0.13748145]
[1768741502613,1.04601918,3324.0,3322.9,0.13748145]
[1768741502802,0.00371111,3324.3,3322.9,0.13748145]
[1768741503002,1.04595696,3324.2,3322.9,0.13748145]
[1768741503202,1.04595696,3324.1,3322.9,0.13748145]
[1768741503398,1.04595696,3324.0,3322.9,0.13748145]
[1768741503612,0.00371111,3324.3,3322.9,0.13748145]
[1768741503813,1.04591051,3324.2,3322.9,0.13748145]
[1768741504008,1.04591051,3324.1,3322.9,0.13748145]
[1768741504208,1.04591051,3324.0,3322.9,0.13748145]
[1768741504409,0.00371111,3324.3,3322.9,0.13748145]
[1768741504611,1.04587826,3324.2,3322.9,0.13748145]
[1768741504809,1.04587826,3324.1,3322.9,0.13748145]
[1768741505010,1.04587826,3324.0,3322.9,0.13748145]
[1768741505211,0.00371111,3324.3,3322.9,0.13748145]
[1768741505413,1.04585755,3324.2,3322.9,0.13748145]
[1768741505613,1.04585755,3324.1,3322.9,0.13748145]
[1768741505809,1.04585755,3324.0,3322.9,0.13748145]
[1768741506009,0.00371111,3324.3,3322.9,0.13748145]
[1768741506212,1.04585741,3324.2,3322.9,0.13748145]
[1768741506412,1.04585741,3324.1,3322.9,0.13748145]
[1768741506616,1.04585741,3324.0,3322.9,0.13748145]
[1768741506821,0.00371111,3324.3,3322.9,0.13748145]
[1768741507117,1.04503656,3324.2,3322.9,0.13748145]
[1768741507325,1.04503656,3324.1,3322.9,0.13748145]
[1768741507516,1.04503656,3324.0,3322.9,0.13748145]
[1768741507716,0.00371111,3324.3,3322.9,0.13748145]
[1768741508015,1.0450373,3324.2,3322.9,0.13748145]
[1768741508214,1.0450373,3324.1,3322.9,0.13748145]
[1768741508415,1.0450373,3324.0,3322.9,0.13748145]
[1768741508615,0.00371111,3324.3,3322.9,0.13748145]
[1768741508815,1.04504832,3324.2,3322.9,0.13748145]
[1768741509014,1.04504832,3324.1,3322.9,1.98548145]
[1768741509213,1.04504832,3324.0,3322.9,1.98548145]
[1768741509415,0.00371111,3324.3,3322.9,0.13748145]
[1768741509617,1.04507323,3324.2,3322.9,0.13748145]
[1768741509818,1.04507323,3324.1,3322.9,0.13748145]
[1768741510015,1.04507323,3324.0,3322.9,0.13748145]
[1768741510315,0.00371111,3324.3,3322.9,0.13748145]
[1768741510516,1.04510984,3324.2,3322.9,0.13748145]
[1768741510819,1.04510984,3324.1,3322.9,0.13748145]
[1768741511120,1.04510984,3324.0,3322.9,0.13748145]
[1768741511419,0.00371111,3324.3,3322.9,0.13748145]
[1768741511619,1.0451587,3324.2,3322.9,0.13748145]
[1768741511820,1.0451587,3324.1,3322.9,0.13748145]
[1768741512019,1.0451587,3324.0,3322.9,0.13748145]
[1768741512212,0.14134522,3324.3,3322.7,0.15054]
[1768741512412,0.13763411,3324.1,3322.7,1.29554]
[1768741512612,1.04523889,3324.0,3322.7,1.29554]
[1768741513723,0.13763411,3323.9,3322.3,3.01]
[1768741514019,1.182873,3323.8,3322.3,3.01]
[1768741514218,1.04523889,3323.7,3322.3,3.01]
[1768741514418,1.182873,3323.7,3322.1,0.28805145]
[1768741514619,1.04523889,3323.6,3322.1,0.28805145]
[1768741518323,1.182873,3323.6,3322.1,0.28805145]
[1768741518525,1.182873,3323.5,3322.1,0.15057]
[1768741518729,1.04523889,3323.4,3322.1,0.15057]
[1768741518922,1.04523889,3323.3,3321.7,0.13748145]
[1768741519123,1.04483034,3323.2,3321.8,1.847]
[1768741519319,0.13763411,3323.5,3321.8,1.847]
[1768741519520,1.18211156,3323.4,3321.8,1.847]
[1768741519720,1.04447745,3323.3,3321.8,1.847]
[1768741521830,1.04447745,3323.3,3321.8,0.13748145]
[1768741522027,1.04447745,3323.3,3321.8,1.74848145]
[1768741525228,0.13763411,3323.4,3321.8,1.74848145]
[1768741528136,0.13763411,3323.4,3321.9,0.13052005]
[1768741536146,1.04632889,3323.3,3321.9,0.13052005]
[1768741536345,0.13763411,3323.4,3321.9,0.13052005]
[1768741536636,1.04645734,3323.3,3321.9,0.13052005]
[1768741536843,0.13763411,3323.4,3321.9,0.13052005]
[1768741537143,1.04645733,3323.3,3321.9,0.13052005]
[1768741537342,0.13763411,3323.4,3321.9,0.13052005]
[1768741537638,1.18046885,3323.3,3321.6,0.15059]
[1768741537842,1.18046885,3323.2,3321.7,1.846]
[1768741538141,1.04661482,3323.1,3321.6,0.15059]
[1768741538330,1.04661482,3323.1,3321.6,1.99659]
[1768741545251,1.04661482,3323.1,3321.6,2.13544392]
[1768741545546,1.04661482,3323.1,3321.6,0.28944392]
[1768741559665,1.04661482,3323.1,3321.6,2.13344392]
[1768741560165,0.13265459,3323.0,3321.6,0.15059]
[1768741560366,1.04661482,3322.9,3321.6,0.15059]
[1768741562666,1.04661482,3322.8,3321.6,0.15059]
[1768741562964,1.04661482,3322.7,3321.6,0.15059]
[1768741563166,1.04661482,3322.6,3321.6,0.15059]
[1768741563465,1.04661482,3322.5,3321.6,0.15059]
[1768741563664,0.13265459,3323.3,3321.6,0.15059]
[1768741563965,1.04843473,3323.2,3321.6,0.15059]
[1768741564264,1.04843473,3323.1,3321.6,0.15059]
[1768741564464,1.04843473,3323.0,3321.6,0.15059]
[1768741564665,1.04843473,3322.9,3321.6,0.15059]
[1768741564868,1.04843473,3322.8,3321.6,0.15059]
[1768741565067,1.04843473,3322.7,3321.6,0.15059]
[1768741565270,1.04843473,3322.6,3321.6,0.15059]
[1768741565468,1.04843473,3322.5,3321.6,0.15059]
[1768741565662,0.13265459,3323.3,3321.6,0.15059]
[1768741565864,1.04846774,3323.2,3321.6,0.15059]
[1768741566164,1.04846774,3323.1,3321.6,0.15059]
[1768741566365,1.04846774,3323.0,3321.6,0.15059]
[1768741566565,1.04846774,3322.9,3321.6,0.15059]
[1768741566765,1.04846774,3322.8,3321.6,0.15059]
[1768741567057,1.04846774,3322.7,3321.6,0.15059]
[1768741567263,1.04846774,3322.6,3321.6,0.15059]
[1768741567463,1.04846774,3322.5,3321.6,0.15059]
[1768741567666,0.13265459,3323.3,3321.6,0.15059]
[1768741567862,1.04805798,3323.2,3321.6,0.15059]
[1768741568063,1.04805798,3323.1,3321.6,0.15059]
[1768741568265,1.04805798,3323.0,3321.6,0.15059]
[1768741568467,1.04805798,3322.9,3321.6,0.15059]
[1768741568664,1.04805798,3322.8,3321.6,0.15059]
[1768741568872,1.04805798,3322.7,3321.6,0.15059]
[1768741569172,1.04805798,3322.6,3321.6,0.15059]
[1768741569471,1.04805798,3322.5,3321.6,0.15059]
[1768741569679,0.13265459,3323.3,3321.6,0.15059]
[1768741569870,1.04797054,3323.2,3321.6,0.15059]
[1768741570074,1.04797054,3323.1,3321.6,0.15059]
[1768741570374,1.04797054,3323.0,3321.6,0.15059]
[1768741570570,1.04797054,3322.9,3321.6,0.15059]
[1768741570769,1.04797054,3322.8,3321.6,0.15059]
[1768741570971,1.04797054,3322.7,3321.6,0.15059]
[1768741571172,1.04797054,3322.6,3321.6,0.15059]
[1768741571367,1.04797054,3322.5,3321.6,0.15059]
[1768741571568,0.13265459,3323.3,3321.6,0.15059]
[1768741571770,1.18057254,3323.2,3321.6,0.15059]
[1768741572078,2.16776392,3323.4,3321.6,0.15059]
[1768741572079,1.18057254,3323.1,3321.6,0.15059]
[1768741572378,1.04791795,3323.0,3321.6,0.15059]
[1768741572578,1.04791795,3322.9,3321.6,0.15059]
[1768741572879,1.04791795,3322.8,3321.6,0.15059]
[1768741573064,1.04791795,3322.7,3321.6,0.15059]
[1768741573263,1.04791795,3322.6,3321.5,0.13689905]
[1768741573468,1.04791795,3322.5,3321.5,0.13689905]
[1768741573778,0.13265459,3323.1,3321.5,0.13689905]
[1768741574078,1.04789057,3323.0,3321.5,0.13689905]
[1768741574280,1.04789057,3322.9,3321.5,0.13689905]
[1768741574481,1.04789057,3322.8,3321.5,0.13689905]
[1768741574680,1.04789057,3322.7,3321.5,0.13689905]
[1768741574978,1.04789057,3322.6,3321.5,0.13689905]
[1768741575180,1.04789057,3322.5,3321.5,0.13689905]
[1768741575383,0.13265459,3323.1,3321.5,0.13689905]
[1768741575683,1.04789306,3323.0,3321.5,0.13689905]
[1768741575870,1.04789306,3322.9,3321.5,0.13689905]
[1768741576069,1.04789306,3322.8,3321.5,0.13689905]
[1768741576284,1.04789306,3322.7,3321.5,0.13689905]
[1768741576475,1.04789306,3322.6,3321.5,0.13689905]
[1768741576670,1.04789306,3322.5,3321.5,0.13689905]
[1768741576871,0.13265459,3323.1,3321.5,0.13689905]
[1768741577070,1.04789807,3323.0,3321.5,0.13689905]
[1768741577267,1.04789807,3322.9,3321.5,0.13689905]
[1768741577487,1.04789807,3322.8,3321.5,0.13689905]
[1768741577781,1.04789807,3322.7,3321.5,0.13689905]
[1768741577970,1.04789807,3322.6,3321.5,0.13689905]
[1768741578270,1.04789807,3322.5,3321.5,0.13689905]
[1768741578476,0.13265459,3323.0,3321.2,0.00355885]
[1768741578677,1.04793171,3322.9,3321.2,0.00355885]
[1768741578873,1.04793171,3322.8,3321.2,0.1404579]
[1768741579178,1.1805863,3322.7,3321.2,0.1404579]
[1768741579379,1.04793171,3322.6,3321.2,0.1404579]
[1768741613388,0.12951676,3322.5,3320.4,0.15065]
[1768741613591,0.12951676,3322.2,3320.4,0.15065]
[1768741613793,1.17744847,3322.1,3320.4,0.15065]
[1768741613993,1.04793171,3322.0,3320.4,0.15065]
[1768741614202,1.04793171,3321.9,3320.4,0.15065]
[1768741614403,0.69592345,3322.6,3320.4,0.15065]
[1768741614404,1.0509497,3321.8,3320.4,0.15065]
[1768741614601,0.12951676,3322.5,3320.4,0.15065]
[1768741614801,1.05094965,3322.4,3320.4,0.15409754]
[1768741614996,0.1320956,3322.5,3320.4,0.15409754]
[1768741614997,1.05094965,3322.3,3320.4,0.15409754]
[1768741615197,1.05094965,3322.2,3320.4,0.15409754]
[1768741615401,1.05094965,3322.1,3320.4,0.15409754]
[1768741615604,1.05094965,3322.0,3320.5,0.1400028]
[1768741615803,1.05094965,3321.9,3320.5,0.1400028]
[1768741616004,0.1320956,3322.5,3320.5,0.1400028]
[1768741616195,1.18014616,3322.4,3320.5,0.1400028]
[1768741616397,1.0506294,3322.3,3320.5,0.1400028]
[1768741619409,1.0506294,3322.3,3320.5,0.2906428]
[1768741619608,1.0506294,3322.3,3320.6,0.1400028]
[1768741620009,1.0506294,3322.3,3320.7,0.1400028]
[1768741624407,1.0506294,3322.3,3320.8,0.1400028]
[1768741626307,1.0506294,3322.3,3320.7,3.012]
[1768741626308,1.0506294,3322.3,3321.0,0.1400028]
[1768741626510,1.0506294,3322.2,3321.0,0.1400028]
[1768741626706,0.00257884,3322.5,3321.0,0.1400028]
[1768741626907,1.06092697,3322.4,3321.0,0.1400028]
[1768741627112,1.06092697,3322.3,3321.0,0.1400028]
[1768741627415,0.00257884,3322.5,3321.0,0.1400028]
[1768741627619,1.06082762,3322.4,3321.1,0.1400028]
[1768741627817,0.00257884,3322.5,3321.1,0.1400028]
[1768741628012,1.0608274,3322.4,3321.1,0.1400028]
[1768741628316,0.00257884,3322.5,3321.1,0.1400028]
[1768741628511,1.06073458,3322.4,3321.1,0.1400028]
[1768741628719,0.00257884,3322.5,3321.1,0.1400028]
[1768741629020,1.06073455,3322.4,3321.1,0.1400028]
[1768741629220,0.00257884,3322.5,3321.1,0.1400028]
[1768741629517,1.0606496,3322.4,3321.1,0.1400028]
[1768741629717,0.00257884,3322.5,3321.1,4.9900028]
[1768741629919,1.0606512,3322.4,3321.1,4.9900028]
[1768741630115,0.00257884,3322.5,3321.1,4.9900028]
[1768741630417,1.06063128,3322.4,3321.1,4.9900028]
[1768741630619,0.00257884,3322.5,3321.1,4.9900028]
[1768741630812,1.06057823,3322.4,3321.1,4.9900028]
[1768741631112,0.00257884,3322.5,3321.1,4.9900028]
[1768741631310,1.06055564,3322.4,3321.1,0.1400028]
[1768741631511,0.1320956,3322.5,3321.1,1.548]
[1768741631720,1.0605125,3322.4,3321.1,1.548]
[1768741631916,0.1320956,3322.5,3321.1,1.548]
[1768741632116,1.06051253,3322.4,3321.1,1.548]
[1768741632416,0.1320956,3322.5,3321.1,1.548]
[1768741632616,1.0604506,3322.4,3321.1,1.548]
[1768741632823,0.1320956,3322.5,3321.1,1.548]
[1768741633016,1.06045057,3322.4,3321.1,1.548]
[1768741633320,0.1320956,3322.5,3321.1,1.548]
[1768741633510,1.06039347,3322.4,3321.1,1.548]
[1768741633710,0.1320956,3322.5,3321.1,1.548]
[1768741633926,1.06039346,3322.4,3321.1,1.548]
[1768741634221,0.1320956,3322.5,3321.1,1.548]
[1768741634420,1.06034042,3322.4,3321.1,1.548]
[1768741634620,0.1320956,3322.5,3321.1,1.548]
[1768741634918,1.06034041,3322.4,3321.1,1.548]
[1768741635122,0.1320956,3322.5,3321.0,4.99962]
[1768741635420,1.1898269,3322.4,3321.0,4.99962]
[1768741635615,0.12951676,3322.4,3321.0,4.99962]
[1768741641725,0.12951676,3322.4,3321.0,0.15062]
[1768741641926,0.12951676,3322.4,3321.1,1.837]
[1768741644233,0.12951676,3322.4,3321.0,0.15062]
[1768741644430,0.12951676,3322.4,3321.1,0.974]
[1768741647229,0.00257884,3322.5,3321.1,1.11285389]
[1768741647420,1.06042719,3322.4,3321.1,1.11285389]
[1768741647619,0.00257884,3322.5,3321.2,0.13885389]
[1768741647823,1.06039684,3322.4,3321.2,0.13885389]
[1768741648120,0.00257884,3322.5,3321.2,0.13885389]
[1768741648322,1.06048153,3322.4,3321.2,0.13885389]
[1768741648631,0.00257884,3322.5,3321.2,0.13885389]
[1768741648825,1.06049658,3322.4,3321.2,0.13885389]
[1768741649024,0.00257884,3322.5,3321.2,0.13885389]
[1768741649323,1.06049695,3322.4,3321.2,0.13885389]
[1768741649522,0.00257884,3322.5,3321.2,0.13885389]
[1768741649723,1.06062094,3322.4,3321.2,0.13885389]
[1768741649920,0.00257884,3322.5,3321.2,0.13885389]
[1768741650121,1.06062094,3322.4,3321.2,0.13885389]
[1768741650325,0.00257884,3322.5,3321.2,0.13885389]
[1768741650630,1.06063708,3322.4,3321.2,0.13885389]
[1768741650832,0.00257884,3322.5,3321.2,0.13885389]
[1768741651034,1.06063783,3322.4,3321.2,0.13885389]
[1768741651235,0.00257884,3322.5,3321.2,0.13885389]
[1768741651424,1.06075186,3322.4,3321.2,0.13885389]
[1768741651619,1.06075186,3322.3,3321.2,0.13885389]
[1768741651829,0.00257884,3322.5,3321.2,0.13885389]
[1768741652018,1.0607819,3322.4,3321.0,0.15062]
[1768741652222,1.0607819,3322.3,3321.0,0.15062]
[1768741652429,1.0607819,3322.2,3321.0,0.15062]
[1768741652618,0.13802156,3322.5,3321.0,0.15062]
[1768741652828,1.06093222,3322.4,3321.0,0.15062]
[1768741653129,0.13802156,3322.5,3321.0,0.15062]
[1768741653130,1.06093222,3322.3,3321.0,0.15062]
[1768741653324,1.06093222,3322.2,3321.0,0.15062]
[1768741653527,1.06093222,3322.1,3321.0,0.15062]
[1768741653729,0.13544272,3322.4,3321.0,0.15062]
[1768741653929,1.06106739,3322.3,3321.0,0.15062]
[1768741654232,1.06106739,3322.2,3321.0,0.15062]
[1768741654426,1.06106739,3322.1,3321.0,0.15062]
[1768741654628,0.13544272,3322.3,3321.0,0.15062]
[1768741654827,1.06119866,3322.2,3321.0,0.15062]
[1768741655029,1.06119866,3322.1,3321.0,0.15062]
[1768741655344,1.06133868,3322.0,3321.0,0.15062]
[1768741655631,0.13544272,3322.3,3321.0,0.15062]
[1768741655825,1.20005539,3322.2,3321.0,0.15062]
[1768741656028,1.06133869,3322.1,3321.0,0.15062]
[1768741656229,0.1387167,3322.2,3321.0,0.15062]
[1768741656428,1.05868455,3322.1,3321.0,0.15062]
[1768741656629,0.1387167,3322.2,3321.0,0.15062]
[1768741656828,1.05868454,3322.1,3321.0,0.15062]
[1768741657029,0.1387167,3322.2,3321.0,0.15062]
[1768741657231,1.05868453,3322.1,3321.0,0.15062]
[1768741657436,0.1387167,3322.2,3321.0,0.15062]
[1768741657638,1.05861633,3322.1,3321.0,0.15062]
[1768741657934,0.1387167,3322.2,3321.0,0.15062]
[1768741658237,1.05861637,3322.1,3321.0,0.15062]
[1768741658424,0.1387167,3322.2,3321.0,0.15062]
[1768741658624,1.05856196,3322.1,3321.0,0.15062]
[1768741658830,0.1387167,3322.2,3321.0,0.15062]
[1768741659031,1.05856195,3322.1,3321.0,0.15062]
[1768741659232,0.1387167,3322.2,3321.0,0.15062]
[1768741659433,1.05851901,3322.1,3321.0,0.15062]
[1768741659634,0.1387167,3322.2,3321.0,0.15062]
[1768741659835,1.05851907,3322.1,3321.0,0.15062]
[1768741660025,0.1387167,3322.2,3321.0,0.15062]
[1768741660226,1.05851905,3322.1,3321.0,0.15062]
[1768741660427,0.1387167,3322.2,3321.0,0.15062]
[1768741660730,1.058483,3322.1,3321.0,0.15062]
[1768741660926,0.1387167,3322.2,3321.0,0.15062]
[1768741661122,1.05848298,3322.1,3321.0,0.15062]
[1768741661327,1.05848298,3322.0,3321.0,0.15062]
[1768741661527,0.1387167,3322.2,3321.0,0.15062]
[1768741661728,1.0584295,3322.1,3321.0,0.15062]
[1768741661929,1.0584295,3322.0,3321.0,0.15062]
[1768741662137,0.1387167,3322.2,3321.0,0.15062]
[1768741662438,1.05842967,3322.1,3321.0,0.15062]
[1768741662633,1.05842967,3322.0,3321.0,0.15062]
[1768741662846,0.1387167,3322.2,3321.0,0.15062]
[1768741663134,1.05838147,3322.1,3321.0,0.15062]
[1768741663335,1.05838147,3322.0,3321.0,0.15062]
[1768741663537,0.1387167,3322.2,3321.0,0.15062]
[1768741663730,1.05834468,3322.1,3321.0,0.15062]
[1768741663931,1.05834468,3322.0,3321.0,0.15062]
[1768741664230,0.1387167,3322.2,3321.0,0.15062]
[1768741664431,1.05831745,3322.1,3321.0,0.15062]
[1768741664738,1.05831745,3322.0,3321.0,0.15062]
[1768741665039,0.1387167,3322.2,3321.0,0.15062]
[1768741665242,1.05831772,3322.1,3321.0,0.15062]
[1768741665539,1.05831772,3322.0,3321.0,0.15062]
[1768741665726,0.1387167,3322.2,3321.0,0.15062]
[1768741665933,1.05828661,3322.1,3321.0,0.15062]
[1768741666132,1.05828661,3322.0,3321.0,0.15062]
[1768741666336,0.1387167,3322.2,3321.0,0.15062]
[1768741666537,1.05828219,3322.1,3321.0,0.15062]
[1768741666737,1.05828219,3322.0,3321.0,0.15062]
[1768741666936,0.1387167,3322.2,3321.0,0.15062]
[1768741667137,1.19699892,3322.1,3321.0,0.15062]
[1768741667337,1.05828222,3322.0,3321.0,0.15062]
[1768741669043,1.05828222,3322.0,3320.6,0.889]
[1768741670645,1.05828222,3322.0,3320.4,0.29268389]
[1768741670846,1.05828222,3322.0,3320.5,4.56458635]
[1768741672746,1.05828222,3322.0,3320.5,4.71522635]
[1768741673943,1.1985041,3322.0,3320.5,4.71522635]
[1768741674144,1.05828222,3321.9,3320.5,4.71522635]
[1768741674343,0.14022188,3322.0,3320.5,4.71522635]
[1768741674544,1.05805148,3321.9,3320.5,4.71522635]
[1768741674745,0.14022188,3322.0,3320.5,4.71522635]
[1768741674946,1.05805144,3321.9,3320.5,4.71522635]
[1768741675145,0.14022188,3322.0,3320.5,4.71522635]
[1768741675348,1.05805143,3321.9,3320.5,4.71522635]
[1768741675645,0.14022188,3322.0,3320.5,4.71522635]
[1768741675646,0.14022188,3322.0,3320.5,0.28922635]
[1768741675847,1.0580401,3321.9,3320.5,1.87822635]
[1768741676047,0.14022188,3322.0,3320.5,1.87822635]
[1768741676246,1.0580399,3321.9,3320.5,1.87822635]
[1768741676545,0.14022188,3322.0,3320.5,1.87822635]
[1768741676735,1.05804683,3321.9,3320.5,1.87822635]
[1768741676937,0.14022188,3322.0,3320.5,1.87822635]
[1768741677148,1.05804685,3321.9,3320.5,1.87822635]
[1768741677452,0.14022188,3322.0,3320.5,1.87822635]
[1768741677651,1.05806774,3321.9,3320.5,1.87822635]
[1768741677946,0.14022188,3322.0,3320.5,1.87822635]
[1768741678245,1.0580677,3321.9,3320.5,1.87822635]
[1768741678447,0.14022188,3322.0,3320.5,1.87822635]
[1768741678645,1.05813187,3321.9,3320.5,1.87822635]
[1768741678845,0.14022188,3322.0,3320.5,1.87822635]
[1768741679048,1.05813189,3321.9,3320.5,1.87822635]
[1768741679346,0.14022188,3322.0,3320.5,1.87822635]
[1768741679553,1.05821754,3321.9,3320.6,0.14061316]
[1768741679848,0.14280072,3322.5,3320.6,0.14061316]
[1768741680055,1.05821274,3322.4,3320.6,0.14061316]
[1768741680234,1.05821274,3322.3,3320.6,0.14061316]
[1768741680440,1.05821274,3322.2,3320.6,0.14061316]
[1768741680643,1.05821274,3322.1,3320.6,0.14061316]
[1768741680947,1.05821274,3322.0,3320.6,0.14061316]
[1768741681934,1.19843462,3322.0,3320.5,0.15064]
[1768741682136,1.05821274,3321.9,3320.5,0.15064]
[1768741682335,0.14022188,3321.8,3320.4,0.00344754]
[1768741682543,1.19843462,3321.7,3320.4,0.00344754]
[1768741682743,1.05821274,3321.6,3320.4,0.00344754]
[1768741683938,1.19843462,3321.6,3320.4,0.00344754]
[1768741684143,1.05821274,3321.5,3320.4,0.00344754]
[1768741684344,1.05821274,3321.4,3320.4,0.00344754]
[1768741684545,0.14022188,3321.6,3320.4,0.00344754]
[1768741684739,1.05785463,3321.5,3320.4,0.00344754]
[1768741684939,1.05785463,3321.4,3320.4,0.00344754]
[1768741685145,0.14022188,3321.6,3320.4,0.00344754]
[1768741685454,1.05761339,3321.5,3320.4,0.00344754]
[1768741685647,0.14022188,3321.6,3320.4,0.00344754]
[1768741685648,1.05761339,3321.4,3320.4,0.00344754]
[1768741685839,0.14022188,3321.6,3320.4,0.00344754]
[1768741686044,1.19783219,3321.5,3320.4,0.00344754]
[1768741686250,1.05761031,3321.4,3320.4,0.00344754]
[1768741689349,0.14022188,3321.5,3320.4,0.00344754]